bitfinex-derivatives/quotes_SOLF0:USTF0_20250331
["timestamp","ask_amount","ask_price","bid_price","bid_amount"]
[1743429874662,37.11032375,126.09,126.01,0.05607253]
[1743429874862,7.9332,126.08,126.01,37.11032375]
[1743429875263,37.11032375,126.12,126.01,37.11032375]
[1743429875466,7.9344,126.06,126.0,3.9729]
[1743429875663,0.056976,126.04,126.02,0.06072563]
[1743429875964,7.9352,126.05,126.03,38.74]
[1743429876160,22.83578431,126.08,126.03,38.74]
[1743429876663,7.9354,126.04,126.03,38.74]
[1743429877365,7.936,126.03,126.02,0.05974101]
[1743429880069,22.83578431,126.04,125.95,38.5]
[1743429880368,22.83578431,126.02,125.95,38.5]
[1743429880564,22.83578431,126.04,125.95,38.5]
[1743429881062,22.83578431,126.04,125.97,7.9395]
[1743429881369,0.05787785,126.01,125.99,0.05576117]
[1743429882468,7.9379,126.0,125.99,0.05576117]
[1743429882868,0.05787785,126.01,125.99,0.05576117]
[1743429883067,7.9379,126.0,125.99,62.05576117]
[1743429883670,7.9379,126.0,125.99,0.05576117]
[1743429884967,0.05787785,126.01,125.93,8.2535]
[1743429885166,22.83578431,126.02,125.93,46.5135]
[1743429885369,8.4614,126.03,125.93,46.5135]
[1743429885571,7.9397,125.98,125.95,7.9408]
[1743429886175,0.05981056,125.98,125.95,0.05568959]
[1743429886371,42.4727,126.05,125.95,0.05568959]
[1743429886572,42.4727,126.05,125.95,1.43876455]
[1743429886774,42.4727,126.05,125.96,62.0]
[1743429886969,22.83578431,126.04,125.96,62.0]
[1743429887469,7.9387,125.99,125.96,69.9404]
[1743429887666,7.9387,125.99,125.96,69.99180894]
[1743429888474,0.05772936,126.01,125.96,62.05140894]
[1743429888976,7.9388,125.99,125.96,69.99130894]
[1743429889180,0.05772936,126.01,125.96,62.05140894]
[1743429889366,7.9387,125.99,125.96,69.99130894]
[1743429889567,0.05772936,126.01,125.96,62.05140894]
[1743429890477,7.9388,125.99,125.96,62.05140894]
[1743429890676,0.05772936,126.01,125.96,62.05140894]
[1743429891076,7.9384,126.0,125.97,7.9395]
[1743429891474,0.05772936,126.01,126.0,7.9379]
[1743429891684,285.56,126.06,126.0,37.98]
[1743429892279,285.56,126.06,126.01,7.9369]
[1743429892578,285.56,126.06,126.0,37.98]
[1743429892780,7.98783935,126.05,126.02,7.99373409]
[1743429892980,0.05263935,126.05,126.02,0.05723409]
[1743429893279,7.936,126.04,126.02,0.05723409]
[1743429893982,7.936,126.03,126.02,0.05723409]
[1743429894277,22.83578431,126.04,125.94,22.83578431]
[1743429894479,7.9377,126.01,125.96,37.84]
[1743429894680,7.9377,126.01,125.98,7.9391]
[1743429894978,22.83578431,126.04,125.96,37.84]
[1743429895483,0.05018906,126.01,125.99,0.05158116]
[1743429895977,0.05018906,126.01,126.0,7.9379]
[1743429896383,26.92288431,126.08,126.0,37.8]
[1743429896586,26.92288431,126.08,126.0,42.1414]
[1743429897085,7.9353,126.05,126.0,42.1414]
[1743429897282,26.92288431,126.08,126.01,62.0]
[1743429897482,0.05273653,126.04,126.01,69.9960319]
[1743429897778,0.05273653,126.04,126.01,62.0593319]
[1743429897985,0.05273653,126.04,126.02,7.9365]
[1743429898184,7.98813653,126.04,126.01,0.0593319]
[1743429898382,0.05273653,126.04,126.01,0.0593319]
[1743429898787,7.9365,126.03,126.01,0.0593319]
[1743429898982,0.05273653,126.04,126.01,0.0593319]
[1743429899383,7.9364,126.03,126.01,0.0593319]
[1743429899884,7.98843653,126.04,126.01,0.0593319]
[1743429900086,0.05273653,126.04,126.01,0.0593319]
[1743429901089,0.05273653,126.04,126.01,62.0593319]
[1743429901287,22.83578431,126.02,125.96,3.9496]
[1743429901487,22.83578431,126.02,125.96,37.86]
[1743429901688,22.83578431,126.04,125.97,7.9395]
[1743429901891,60.69578431,126.06,125.96,37.86]
[1743429902193,22.83578431,126.06,125.96,37.86]
[1743429902393,7.9361,126.03,126.0,7.9375]
[1743429902593,0.05592112,126.02,126.0,45.89589639]
[1743429902790,0.05592112,126.02,126.0,37.95839639]
[1743429904085,7.9344,126.06,126.0,37.95839639]
[1743429904285,26.98508431,126.09,126.01,66.0761]
[1743429904687,7.936,126.03,126.01,66.0761]
[1743429905081,0.0512433,126.03,126.01,66.12844098]
[1743429905293,0.0512433,126.03,126.01,62.05234098]
[1743429905681,129.43117262,126.14,126.02,22.83578431]
[1743429905882,141.41239702,126.14,126.02,26.80448431]
[1743429906085,7.933,126.08,126.02,26.80448431]
[1743429906294,60.59578431,126.12,126.02,3.9687]
[1743429906692,7.9319,126.1,126.02,3.9687]
[1743429906994,0.04262933,126.08,126.06,7.99171736]
[1743429907391,0.04262933,126.08,126.06,0.05791736]
[1743429908394,7.97582933,126.08,126.06,0.05791736]
[1743429908696,0.04262933,126.08,126.06,0.05791736]
[1743429909893,7.9335,126.07,126.06,0.05791736]
[1743429910096,0.04262933,126.08,126.06,0.05791736]
[1743429910597,0.04262933,126.08,126.06,37.75791736]
[1743429911901,7.9335,126.07,126.06,0.05791736]
[1743429912494,7.9335,126.07,126.03,41.9645]
[1743429912495,22.87841364,126.08,125.97,113.22245215]
[1743429912700,22.83578431,126.01,125.97,113.22245215]
[1743429912994,7.9391,125.98,125.97,113.22245215]
[1743429913395,22.83578431,125.99,125.96,130.58770067]
[1743429913701,7.9398,125.97,125.96,130.64186037]
[1743429914595,0.05322204,125.99,125.96,130.64186037]
[1743429915098,7.9398,125.97,125.96,130.64186037]
[1743429915299,0.05322204,125.99,125.96,130.64186037]
[1743429915704,7.9398,125.97,125.96,0.0541597]
[1743429915996,0.05322204,125.99,125.96,0.0541597]
[1743429916497,0.05322204,125.99,125.98,7.9391]
[1743429916698,0.05322204,125.99,125.96,0.0541597]
[1743429916895,10.99951398,126.07,125.98,22.83578431]
[1743429917098,10.99951398,126.07,126.02,7.9361]
[1743429917299,10.99951398,126.07,125.99,45.8789]
[1743429917499,33.83529829,126.07,125.99,45.8789]
[1743429917696,323.18,126.08,125.99,45.8789]
[1743429918000,7.9341,126.07,125.99,68.71468431]
[1743429918303,0.04732465,126.05,126.03,7.9359]
[1743429918503,0.04732465,126.05,126.04,62.0]
[1743429920506,7.9358,126.04,126.02,0.0582917]
[1743429920706,0.04732465,126.05,126.02,0.0582917]
[1743429921104,7.936,126.03,126.02,0.0582917]
[1743429922302,0.04732465,126.05,126.02,0.0582917]
[1743429922802,0.04732465,126.05,126.02,37.3382917]
[1743429923506,7.9354,126.04,126.03,62.0]
[1743429924607,7.9354,126.04,126.02,0.0582917]
[1743429925205,7.936,126.03,126.02,0.0582917]
[1743429925608,22.88310896,126.05,125.96,4.0269]
[1743429925910,22.83578431,126.01,125.93,4.2984]
[1743429926098,22.83578431,126.01,125.93,49.4204]
[1743429926303,7.9408,125.96,125.93,49.4204]
[1743429926504,22.83578431,126.01,125.93,41.4784]
[1743429926704,7.9414,125.95,125.92,45.1026]
[1743429927003,37.18,126.02,125.92,59.99578431]
[1743429927202,7.9398,125.97,125.92,60.05414919]
[1743429927502,7.9398,125.97,125.93,62.0]
[1743429927809,7.9414,125.95,125.93,62.05541176]
[1743429928012,22.83578431,126.01,125.93,62.05541176]
[1743429928211,0.05031303,125.95,125.94,7.9414]
[1743429928404,15.8672,126.07,125.96,0.05108236]
[1743429928712,22.83578431,126.03,125.96,37.1]
[1743429928911,7.9389,125.99,125.96,45.0401]
[1743429929212,421.93578431,126.05,125.96,37.1]
[1743429929411,7.9398,125.97,125.96,37.1]
[1743429929609,0.05530332,126.01,125.96,37.1]
[1743429929809,0.05206605,126.0,125.96,37.1]
[1743429930108,7.9395,125.98,125.97,0.05130759]
[1743429930313,0.05206605,126.0,125.97,0.05130759]
[1743429930911,0.05206605,126.0,125.97,8.19420759]
[1743429931617,285.6,126.08,125.99,22.83578431]
[1743429931815,10.98949967,126.06,126.0,37.0]
[1743429932009,10.98949967,126.06,126.0,44.9376]
[1743429932210,10.98949967,126.06,126.0,37.0]
[1743429932611,10.98949967,126.06,126.0,36.94]
[1743429932916,10.98949967,126.06,126.02,0.05330008]
[1743429933415,7.936,126.03,126.02,0.05330008]
[1743429933713,10.98949967,126.06,126.02,0.05330008]
[1743429933913,7.9357,126.04,126.02,0.05330008]
[1743429934114,10.98949967,126.06,126.02,0.05330008]
[1743429934515,10.98949967,126.06,126.05,7.9347]
[1743429934714,10.98949967,126.06,126.05,44.7747]
[1743429934914,10.98949967,126.12,126.05,98.84]
[1743429935406,10.98949967,126.12,126.07,0.05477734]
[1743429935812,7.9328,126.08,126.07,0.05477734]
[1743429938515,22.83578431,126.12,126.07,0.05477734]
[1743429939011,7.9328,126.08,126.07,0.05477734]
[1743429940721,75.27928431,126.1,125.97,380.83578431]
[1743429940918,22.83578431,126.08,125.99,36.6]
[1743429941523,31.00008431,126.08,125.99,44.5385]
[1743429941822,7.937,126.02,126.0,36.56]
[1743429942122,31.00008431,126.08,126.0,36.56]
[1743429942317,0.05073658,126.02,126.0,36.62068799]
[1743429942518,8.1643,126.08,126.0,36.56]
[1743429942725,7.9357,126.04,126.01,7.937]
[1743429943022,7.9357,126.04,126.03,0.0591216]
[1743429943721,0.05571551,126.05,126.03,62.0591216]
[1743429943920,10.98949967,126.12,126.04,36.52]
[1743429944129,10.98949967,126.12,126.05,22.83578431]
[1743429944420,219.78999358,126.14,126.05,4.3401]
[1743429944421,43.9579987,126.14,126.05,4.3401]
[1743429944621,7.9319,126.1,126.05,4.3401]
[1743429944823,43.9579987,126.14,126.05,4.3401]
[1743429945019,43.9579987,126.14,126.07,7.9333]
[1743429945216,43.9579987,126.14,126.05,4.3401]
[1743429945217,22.83578431,126.11,126.05,4.3401]
[1743429945425,22.83578431,126.11,126.03,98.48]
[1743429945723,7.9344,126.06,126.03,98.48]
[1743429946230,22.83578431,126.09,126.03,98.48]
[1743429946419,22.83578431,126.09,126.0,36.48]
[1743429946723,7.9364,126.03,125.99,7.9384]
[1743429946920,36.48,126.08,126.0,36.48]
[1743429947520,7.9352,126.05,126.01,7.9372]
[1743429947721,36.48,126.08,126.0,36.48]
[1743429947926,0.05093467,126.04,126.02,0.05202446]
[1743429948223,22.83578431,126.11,126.01,22.83578431]
[1743429948425,22.83578431,126.11,126.0,36.48]
[1743429948722,22.83578431,126.11,126.03,7.9358]
[1743429948921,22.83578431,126.11,126.0,36.48]
[1743429949123,22.83578431,126.11,126.01,26.98188431]
[1743429949320,0.05512156,126.07,126.04,0.05426038]
[1743429949529,59.31578431,126.13,126.05,98.48]
[1743429949717,0.05658017,126.07,126.05,98.48]
[1743429949914,59.31578431,126.13,126.05,98.48]
[1743429950113,7.9850701,126.07,126.05,106.46753861]
[1743429950314,22.83578431,126.11,126.05,36.53520443]
[1743429950523,22.83578431,126.11,126.02,4.3379]
[1743429950713,7.9332,126.08,126.07,0.05396961]
[1743429953927,7.98621957,126.09,126.07,0.05396961]
[1743429954326,0.05371957,126.09,126.07,0.05396961]
[1743429954729,7.9328,126.08,126.07,0.05396961]
[1743429954926,0.05371957,126.09,126.07,0.05396961]
[1743429955829,7.9328,126.08,126.07,0.05396961]
[1743429957219,0.05371957,126.09,126.07,0.05396961]
[1743429957828,7.9328,126.08,126.07,0.05396961]
[1743429958527,7.98631957,126.09,126.07,0.05396961]
[1743429958829,0.05371957,126.09,126.07,0.05396961]
[1743429959028,7.9328,126.08,126.07,0.05396961]
[1743429960526,0.05371957,126.09,126.07,36.53396961]
[1743429960726,110.75178174,126.17,126.09,7.9319]
[1743429960926,110.75178174,126.17,126.07,36.48]
[1743429961229,43.9579987,126.15,126.08,36.48]
[1743429961524,51.8868987,126.15,126.08,36.48]
[1743429961729,43.9579987,126.15,126.1,0.05795123]
[1743429962226,51.8868987,126.15,126.1,0.05795123]
[1743429962430,43.9579987,126.15,126.1,0.05795123]
[1743429962727,51.8866987,126.15,126.1,0.05795123]
[1743429962928,43.9579987,126.15,126.1,0.05795123]
[1743429963123,7.9295,126.14,126.1,7.98935123]
[1743429963931,7.9304,126.12,126.1,0.05795123]
[1743429964333,7.931,126.11,126.1,0.05795123]
[1743429964634,362.0,126.18,126.1,0.05795123]
[1743429964832,7.9292,126.14,126.1,7.9313]
[1743429965023,59.31578431,126.19,126.07,27.08778431]
[1743429965024,59.31578431,126.19,126.13,0.0502414]
[1743429965229,59.31578431,126.19,126.1,36.48]
[1743429965431,22.83578431,126.19,126.15,0.05067286]
[1743429965626,296.46949967,126.2,126.15,0.05067286]
[1743429965832,7.9269,126.18,126.15,0.05067286]
[1743429966024,296.46949967,126.2,126.15,0.05067286]
[1743429967332,296.46949967,126.2,126.15,4.02217286]
[1743429967533,7.9264,126.19,126.15,4.02217286]
[1743429968438,7.9256,126.2,126.16,62.0]
[1743429968636,22.83578431,126.21,126.16,62.0]
[1743429968836,7.9272,126.17,126.16,62.0]
[1743429969036,22.83578431,126.21,126.17,0.05004209]
[1743429969337,7.9269,126.18,126.17,0.05004209]
[1743429969541,43.9579987,126.22,126.17,0.05004209]
[1743429969732,43.9579987,126.22,126.18,36.46]
[1743429969931,43.9579987,126.22,126.18,40.8238]
[1743429970329,43.9579987,126.22,126.2,7.9252]
[1743429970533,87.91599743,126.23,126.19,31.21038431]
[1743429970734,87.91599743,126.23,126.2,0.05861262]
[1743429970935,87.91599743,126.23,126.21,7.9242]
[1743429971136,87.91599743,126.23,126.22,36.46]
[1743429971331,52.8241929,126.23,126.22,36.46]
[1743429971539,32.89001046,126.26,126.22,44.38]
[1743429971735,32.89001046,126.26,126.22,36.46]
[1743429972039,32.89001046,126.26,126.23,0.05612121]
[1743429972239,20.16651046,126.26,126.24,62.0]
[1743429972634,20.16651046,126.26,126.25,36.46]
[1743429973127,20.16651046,126.26,126.25,75.13798431]
[1743429973329,131.87399615,126.28,126.27,22.83578431]
[1743429973535,207.53539358,126.29,126.27,22.83578431]
[1743429973739,214.28199764,126.3,126.29,7.9197]
[1743429973941,214.28199764,126.3,126.29,67.19548431]
[1743429974131,214.28199764,126.3,126.29,15.8397]
[1743429974333,214.28199764,126.3,126.29,52.2797]
[1743429974529,26.91488431,126.39,126.29,36.44]
[1743429974731,7.9183,126.32,126.29,36.44]
[1743429974938,22.83578431,126.35,126.26,36.44]
[1743429975142,8.4432,126.34,126.29,0.0600042]
[1743429975336,7.919,126.31,126.29,0.0600042]
[1743429975536,8.4432,126.34,126.29,0.0600042]
[1743429975741,8.4432,126.34,126.3,62.0]
[1743429976239,8.4432,126.34,126.29,0.0600042]
[1743429977043,952.36690976,126.41,126.3,36.44]
[1743429977231,26.96418431,126.38,126.3,36.44]
[1743429977435,7.9159,126.35,126.34,0.05715326]
[1743429979346,36.44,126.5,126.34,106.41715326]
[1743429979638,4.0984,126.46,126.36,22.83578431]
[1743429980141,4.0984,126.46,126.4,0.0599399]
[1743429980340,4.0984,126.46,126.41,36.44]
[1743429980641,8.1972,126.49,126.41,36.44]
[1743429981142,8.1972,126.49,126.44,7.96739176]
[1743429981445,7.9088,126.47,126.45,36.42]
[1743429981633,8.1972,126.49,126.45,36.42]
[1743429981844,8.1972,126.49,126.44,0.05759176]
[1743429981845,7.9096,126.45,126.44,0.05759176]
[1743429982336,22.83578431,126.47,126.37,285.08]
[1743429982539,22.83578431,126.47,126.38,36.4]
[1743429982944,22.83578431,126.47,126.37,36.4]
[1743429983346,7.9094,126.46,126.38,22.83578431]
[1743429983537,4.0984,126.51,126.41,7.96343363]
[1743429983737,22.83578431,126.49,126.42,36.4]
[1743429984444,22.83578431,126.45,126.37,148.2156052]
[1743429984634,36.4,126.44,126.37,86.2156052]
[1743429985042,7.9116,126.42,126.39,0.05993792]
[1743429985343,59.23578431,126.47,126.38,36.4]
[1743429985543,59.23578431,126.47,126.39,0.05186859]
[1743429985938,7.9138,126.39,126.37,86.2156052]
[1743429986138,36.4,126.42,126.32,36.4]
[1743429986336,36.4,126.42,126.37,0.06050822]
[1743429986537,22.83578431,126.41,126.37,0.06050822]
[1743429986746,22.83578431,126.41,126.31,23.88821286]
[1743429986939,22.83578431,126.41,126.31,60.28821286]
[1743429987344,22.83578431,126.37,126.31,23.88821286]
[1743429987543,59.23578431,126.37,126.31,23.88821286]
[1743429987743,22.83578431,126.35,126.31,23.88821286]
[1743429987945,22.89396473,126.35,126.31,23.88821286]
[1743429988145,7.9166,126.34,126.33,7.562e-05]
[1743429988751,16.0676,126.34,126.33,7.562e-05]
[1743429990940,8.151,126.34,126.24,36.4]
[1743429991144,59.23578431,126.33,126.24,36.4]
[1743429991350,7.9207,126.28,126.24,36.4]
[1743429991944,4.3473,126.32,126.22,7.9238]
[1743429992253,0.05379159,126.27,126.25,0.05326031]
[1743429992648,22.83578431,126.31,126.25,0.05326031]
[1743429992848,22.83578431,126.31,126.15,60.5627558]
[1743429992849,0.0518603,126.27,126.15,60.5627558]
[1743429993057,7.9239,126.23,126.18,7.9261]
[1743429993357,36.4,126.26,126.16,255.86006924]
[1743429993557,44.798,126.26,126.16,233.1434896]
[1743429993755,44.20850306,126.26,126.16,233.1434896]
[1743429993955,44.20850306,126.26,126.18,62.0]
[1743429994154,0.05588232,126.23,126.2,0.0603406]
[1743429994352,0.05588232,126.23,126.2,36.4603406]
[1743429994649,0.05588232,126.23,126.2,44.3854406]
[1743429995355,0.05588232,126.23,126.2,36.4603406]
[1743429997162,36.4,126.22,126.13,4.1301]
[1743429997364,22.83578431,126.21,126.13,4.1301]
[1743429997551,22.83578431,126.21,126.12,86.2156052]
[1743429997756,7.9264,126.19,126.16,86.2156052]
[1743429998161,4.0166,126.21,126.16,86.2156052]
[1743429998361,26.85238431,126.21,126.16,86.2156052]
[1743429998561,0.06073874,126.19,126.16,86.26849994]
[1743429998762,36.4,126.18,126.16,0.05289474]
[1743429999169,0.06073874,126.19,126.16,0.05289474]
[1743430000365,0.06073874,126.19,126.17,62.0]
[1743430000565,36.4,126.23,126.17,98.4]
[1743430000763,4.3666,126.25,126.17,102.5299]
[1743430001464,8.4854,126.28,126.18,22.83578431]
[1743430001663,292.9017,126.26,126.21,7.9242]
[1743430001863,0.05238208,126.23,126.21,0.05978431]
[1743430002662,7.9241,126.22,126.21,0.05978431]
[1743430002963,22.88816639,126.23,126.18,86.2156052]
[1743430003352,7.925,126.21,126.18,86.2156052]
[1743430003755,7.9255,126.2,126.18,86.2156052]
[1743430003969,73.45130212,126.21,126.18,66.57255242]
[1743430004165,0.05332479,126.2,126.18,66.57255242]
[1743430004467,37.03130212,126.19,126.12,130.79967654]
[1743430004659,37.03130212,126.17,126.12,130.79967654]
[1743430004857,7.9293,126.14,126.12,130.79967654]
[1743430005073,73.45130212,126.17,126.12,130.79967654]
[1743430005364,7.9289,126.15,126.13,0.05032963]
[1743430005771,0.05934475,126.16,126.13,0.05032963]
[1743430006067,7.9291,126.14,126.13,0.05032963]
[1743430008872,37.03130212,126.14,126.08,62.0]
[1743430009073,36.42,126.13,126.08,62.0]
[1743430009271,44.643,126.16,126.08,98.42]
[1743430009471,7.9294,126.14,126.08,98.42]
[1743430009763,44.643,126.16,126.1,7.9313]
[1743430009963,7.9301,126.13,126.1,7.9313]
[1743430010172,7.9301,126.13,126.12,0.05753264]
[1743430010575,0.05542318,126.14,126.12,36.49753264]
[1743430010772,370.1899,126.22,126.12,73.52883476]
[1743430010970,8.1899,126.22,126.14,37.03130212]
[1743430011565,322.27130212,126.25,126.16,37.03130212]
[1743430011765,285.24,126.25,126.17,36.44]
[1743430012072,7.97548737,126.22,126.19,7.98574345]
[1743430012273,0.05108737,126.22,126.19,0.06014345]
[1743430013572,7.9253,126.2,126.19,0.06014345]
[1743430014070,0.05108737,126.22,126.19,62.06014345]
[1743430014466,7.9247,126.21,126.19,62.06014345]
[1743430014667,0.05108737,126.22,126.19,62.06014345]
[1743430015674,7.97518737,126.22,126.19,69.98574345]
[1743430015870,0.05108737,126.22,126.19,62.06014345]
[1743430017076,0.05108737,126.22,126.19,69.98574345]
[1743430017677,0.05108737,126.22,126.19,62.06014345]
[1743430018075,7.9251,126.21,126.19,62.06014345]
[1743430018275,0.05108737,126.22,126.19,69.98594345]
[1743430018775,0.05108737,126.22,126.19,62.06014345]
[1743430018972,0.05108737,126.22,126.2,7.9249]
[1743430019175,0.05108737,126.22,126.19,62.06014345]
[1743430019774,7.97528737,126.22,126.19,62.06014345]
[1743430020072,0.05108737,126.22,126.2,7.9253]
[1743430020277,0.05108737,126.22,126.19,62.06014345]
[1743430020574,322.27130212,126.25,126.19,62.06014345]
[1743430020977,285.24,126.25,126.19,62.06014345]
[1743430021285,285.24,126.25,126.21,7.9244]
[1743430021576,37.03130212,126.27,126.21,36.42]
[1743430021777,0.05375288,126.24,126.22,0.05940069]
[1743430024280,285.18,126.31,126.22,22.82482231]
[1743430024477,22.76542162,126.3,126.22,0.05940069]
[1743430024779,7.9238,126.23,126.2,4.284]
[1743430024970,22.76542162,126.28,126.2,12.2093]
[1743430025279,0.05062368,126.25,126.23,0.05312477]
[1743430026077,7.9228,126.24,126.23,0.05312477]
[1743430026572,7.97312368,126.25,126.23,0.05312477]
[1743430026967,0.05062368,126.25,126.23,0.05312477]
[1743430027277,35.14032162,126.32,126.24,36.42]
[1743430027278,12.3749,126.32,126.24,36.42]
[1743430027477,12.3749,126.32,126.24,48.362]
[1743430027672,7.9206,126.28,126.24,40.4395]
[1743430027875,12.3749,126.32,126.24,40.4395]
[1743430028080,12.3749,126.32,126.26,7.9215]
[1743430028272,7.92,126.29,126.26,7.9215]
[1743430028479,7.92,126.29,126.27,0.05125174]
[1743430028480,0.06012744,126.29,126.27,0.05125174]
[1743430028682,307.92542162,126.37,126.28,36.42]
[1743430029189,22.76542162,126.35,126.28,36.42]
[1743430029379,22.76542162,126.33,126.25,36.42]
[1743430029880,0.05070333,126.3,126.28,0.05110227]
[1743430030181,7.9197,126.29,126.28,0.05110227]
[1743430031184,7.9215,126.26,126.25,86.90941943]
[1743430032385,7.9222,126.25,126.24,0.06080508]
[1743430033377,7.9241,126.22,126.21,86.90941943]
[1743430034490,0.05891875,126.23,126.21,86.90941943]
[1743430034881,0.05891875,126.23,126.2,62.05568185]
[1743430035083,0.05891875,126.23,126.2,0.05568185]
[1743430035388,59.16542162,126.22,126.17,86.90941943]
[1743430035580,4.197,126.21,126.17,86.90941943]
[1743430035787,7.9266,126.18,126.17,86.90941943]
[1743430036188,30.69202162,126.18,126.17,61.61581943]
[1743430036384,7.9272,126.17,126.16,130.79967654]
[1743430036695,22.76542162,126.18,126.12,36.4]
[1743430036888,22.76542162,126.18,126.11,134.83017654]
[1743430036889,59.16542162,126.18,126.11,134.83017654]
[1743430037089,22.76542162,126.16,126.11,134.83017654]
[1743430037390,22.76542162,126.16,126.11,130.79967654]
[1743430037782,59.16542162,126.18,126.11,130.79967654]
[1743430037985,0.05320346,126.15,126.12,98.45894899]
[1743430038191,0.05320346,126.15,126.12,98.4]
[1743430038486,0.05709517,126.15,126.12,98.45781803]
[1743430038689,0.05709517,126.15,126.12,62.05781803]
[1743430038889,0.05709517,126.15,126.12,0.05781803]
[1743430039989,0.05709517,126.15,126.12,7.98781803]
[1743430040489,0.05709517,126.15,126.12,0.05781803]
[1743430040689,0.05709517,126.15,126.12,7.98781803]
[1743430040889,0.05709517,126.15,126.12,0.05781803]
[1743430041186,0.05709517,126.15,126.13,7.9297]
[1743430041390,0.05709517,126.15,126.12,0.05781803]
[1743430042394,22.76542162,126.14,126.03,153.56509816]
[1743430042691,22.76542162,126.14,126.05,46.48013638]
[1743430042881,22.76542162,126.14,126.07,7.9332]
[1743430043086,22.76542162,126.14,126.05,45.0425]
[1743430043290,22.76542162,126.12,126.05,45.0425]
[1743430043594,0.05223425,126.1,126.07,0.05849081]
[1743430043988,7.98413425,126.1,126.07,0.05849081]
[1743430044789,7.9323,126.09,126.07,0.05849081]
[1743430044989,0.05223425,126.1,126.07,0.05849081]
[1743430045186,22.76542162,126.08,125.99,599.49851748]
[1743430045493,22.76542162,126.08,126.0,631.16471154]
[1743430046090,7.9344,126.06,126.02,7.9363]
[1743430046393,0.05506846,126.05,126.03,0.0535763]
[1743430047796,0.05506846,126.05,126.04,7.9354]
[1743430048192,0.05506846,126.05,126.04,62.0]
[1743430048488,36.42,126.1,126.04,62.0]
[1743430048796,36.42,126.1,126.04,66.3639]
[1743430049093,7.9329,126.08,126.05,7.9344]
[1743430049298,22.76542162,126.12,126.04,4.3639]
[1743430049595,7.98326206,126.09,126.07,0.05444667]
[1743430049799,36.44,126.13,126.07,0.05444667]
[1743430050197,7.932,126.1,126.07,0.05444667]
[1743430050594,7.9314,126.11,126.07,7.98794667]
[1743430051094,0.05294868,126.1,126.07,7.98794667]
[1743430051495,0.05294868,126.1,126.07,0.05444667]
[1743430051989,7.9328,126.08,126.07,0.05444667]
[1743430052188,0.05294868,126.1,126.07,62.05444667]
[1743430052494,7.98484868,126.1,126.07,62.05444667]
[1743430052694,0.05294868,126.1,126.07,62.05444667]
[1743430053296,7.9326,126.09,126.07,62.05444667]
[1743430053593,0.05294868,126.1,126.07,62.05444667]
[1743430053797,7.9325,126.09,126.07,62.05444667]
[1743430054597,7.9328,126.08,126.07,62.05444667]
[1743430054798,7.9328,126.08,126.07,0.05444667]
[1743430055094,7.935,126.05,126.01,40.7089]
[1743430055285,22.76542162,126.08,126.01,40.7089]
[1743430055686,59.20542162,126.1,126.04,7.935]
[1743430056097,7.9344,126.06,126.01,40.7089]
[1743430056395,7.9344,126.06,126.03,7.9358]
[1743430056601,0.05617153,126.05,126.02,0.05639739]
[1743430056787,0.05617153,126.05,126.01,40.7089]
[1743430057094,0.05617153,126.05,126.02,0.05199417]
[1743430057289,36.44,126.1,126.02,0.05199417]
[1743430057490,59.20542162,126.1,126.01,40.7089]
[1743430057693,22.76542162,126.08,126.02,62.0]
[1743430057889,22.76542162,126.06,126.0,4.3129]
[1743430058390,22.76542162,126.04,125.97,7.9395]
[1743430058591,22.82191545,126.04,126.02,0.0515218]
[1743430058894,7.936,126.03,126.02,0.0515218]
[1743430061098,30.75761545,126.04,126.02,0.0515218]
[1743430061297,0.05649383,126.04,126.02,0.0515218]
[1743430061795,0.05649383,126.04,126.03,7.936]
[1743430062301,0.05649383,126.04,126.02,11.9455218]
[1743430062496,0.05649383,126.04,126.02,16.0602218]
[1743430062799,7.99199383,126.04,126.02,4.0093218]
[1743430063793,7.99199383,126.04,126.02,11.9459218]
[1743430064299,0.05649383,126.04,126.02,4.0093218]
[1743430064499,0.05649383,126.04,126.02,66.0093218]
[1743430065202,7.936,126.03,126.02,0.0515218]
[1743430066202,7.936,126.03,126.02,2.18e-05]
[1743430066502,7.9385,126.0,125.97,4.3605]
[1743430066794,7.9376,126.01,125.97,4.3605]
[1743430067097,22.76542162,126.04,125.97,4.3605]
[1743430067299,22.76542162,126.04,125.98,7.9388]
[1743430067598,7.9375,126.01,125.99,0.05808043]